[Event "November 21 Early 2023"]
[Site "https://www.chess.com"]
[Date "2023.11.21"]
[Round "4"]
[White "Bao, Qilin"]
[Black "Darmanin, Jake"]
[Result "0-1"]
[Board "137"]
[TimeControl "180+1"]
[WhiteFideId "8605750"]
[BlackFideId "5601061"]
[WhiteElo "2320"]
[BlackElo "2119"]
[WhiteTeam "CHN"]
[BlackTeam "MLT"]
[WhiteClock "0:00:00"]
[BlackClock "0:00:03"]

1. Nf3 {[%clk 0:03:00]}  d5 {[%clk 0:02:37]} 2. g3 {[%clk 0:03:00]}  Nf6 {[%clk 0:02:37]} 3. Bg2 {[%clk 0:03:00]}  c6 {[%clk 0:02:38]} 4. O-O {[%clk 0:02:59]}  g6 {[%clk 0:02:38]} 5. b3 {[%clk 0:02:58]}  Bg7 {[%clk 0:02:38]} 6. Bb2 {[%clk 0:02:59]}  O-O {[%clk 0:02:38]} 7. c4 {[%clk 0:03:00]}  dxc4 {[%clk 0:02:37]} 8. bxc4 {[%clk 0:03:00]}  Na6 {[%clk 0:02:32]} 9. d3 {[%clk 0:02:58]}  h6 {[%clk 0:02:26]} 10. Nbd2 {[%clk 0:02:55]}  Bf5 {[%clk 0:02:25]} 11. Rb1 {[%clk 0:02:54]}  Qc8 {[%clk 0:02:22]} 12. Nb3 {[%clk 0:02:52]}  Bh3 {[%clk 0:02:21]} 13. Na5 {[%clk 0:02:41]}  Bxg2 {[%clk 0:02:19]} 14. Kxg2 {[%clk 0:02:42]}  b6 {[%clk 0:02:18]} 15. Nb3 {[%clk 0:02:41]}  c5 {[%clk 0:02:17]} 16. a4 {[%clk 0:02:36]}  Qc6 {[%clk 0:02:14]} 17. a5 {[%clk 0:02:36]}  Rab8 {[%clk 0:02:10]} 18. Kg1 {[%clk 0:02:34]}  b5 {[%clk 0:02:06]} 19. Be5 {[%clk 0:02:29]}  Rb7 {[%clk 0:02:06]} 20. cxb5 {[%clk 0:02:29]}  Rxb5 {[%clk 0:02:04]} 21. Qc2 {[%clk 0:02:20]}  Qc8 {[%clk 0:01:33]} 22. Rfc1 {[%clk 0:02:12]}  Rd8 {[%clk 0:01:30]} 23. Nbd4 {[%clk 0:01:36]}  Rxb1 {[%clk 0:01:27]} 24. Qxb1 {[%clk 0:01:36]}  Ne8 {[%clk 0:01:07]} 25. Bxg7 {[%clk 0:01:30]}  Kxg7 {[%clk 0:01:08]} 26. Nb5 {[%clk 0:01:15]}  Qb7 {[%clk 0:00:57]} 27. Qa1+ {[%clk 0:01:10]}  Kg8 {[%clk 0:00:56]} 28. Na3 {[%clk 0:01:10]}  Nd6 {[%clk 0:00:52]} 29. Nc4 {[%clk 0:01:11]}  Nxc4 {[%clk 0:00:47]} 30. Rxc4 {[%clk 0:01:12]}  Rb8 {[%clk 0:00:44]} 31. Kg2 {[%clk 0:01:04]}  Qb2 {[%clk 0:00:43]} 32. Qd1 {[%clk 0:00:57]}  Rb4 {[%clk 0:00:42]} 33. Rc2 {[%clk 0:00:53]}  Qa3 {[%clk 0:00:38]} 34. Ne5 {[%clk 0:00:49]}  Qb3 {[%clk 0:00:28]} 35. Nc4 {[%clk 0:00:40]}  Rb7 {[%clk 0:00:18]} 36. Qc1 {[%clk 0:00:39]}  Qb5 {[%clk 0:00:17]} 37. Qxh6 {[%clk 0:00:36]}  Qc6+ {[%clk 0:00:16]} 38. f3 {[%clk 0:00:37]}  Nb4 {[%clk 0:00:16]} 39. Rc1 {[%clk 0:00:32]}  Nd5 {[%clk 0:00:16]} 40. Qd2 {[%clk 0:00:27]}  Qe6 {[%clk 0:00:13]} 41. h4 {[%clk 0:00:25]}  Qc6 {[%clk 0:00:12]} 42. h5 {[%clk 0:00:25]}  gxh5 {[%clk 0:00:12]} 43. Rh1 {[%clk 0:00:25]}  Qg6 {[%clk 0:00:12]} 44. e4 {[%clk 0:00:23]}  Nf6 {[%clk 0:00:09]} 45. Qf2 {[%clk 0:00:22]}  Rb3 {[%clk 0:00:08]} 46. Qxc5 {[%clk 0:00:17]}  Rxd3 {[%clk 0:00:08]} 47. Qxe7 {[%clk 0:00:18]}  Rc3 {[%clk 0:00:07]} 48. Qd8+ {[%clk 0:00:16]}  Kg7 {[%clk 0:00:07]} 49. Qd4 {[%clk 0:00:14]}  Rc2+ {[%clk 0:00:07]} 50. Kh3 {[%clk 0:00:14]}  Kh7 {[%clk 0:00:05]} 51. Ne3 {[%clk 0:00:14]}  Re2 {[%clk 0:00:04]} 52. Nf5 {[%clk 0:00:13]}  Ng4 {[%clk 0:00:04]} 53. Qc4 {[%clk 0:00:06]}  Nf2+ {[%clk 0:00:05]} 54. Kg2 {[%clk 0:00:06]}  Rd2 {[%clk 0:00:03]} 55. Rf1 {[%clk 0:00:02]}  Nxe4+ {[%clk 0:00:03]} 56. Kg1 {[%clk 0:00:00]}  Nxg3 {[%clk 0:00:03]} 0-1

[Event "November 21 Early 2023"]
[Site "https://www.chess.com"]
[Date "2023.11.21"]
[Round "4"]
[White "Weishaeutel, Moritz"]
[Black "Tsyhanchuk, Stanislav"]
[Result "1-0"]
[Board "138"]
[TimeControl "180+1"]
[WhiteFideId "12967300"]
[BlackFideId "13505130"]
[WhiteElo "2321"]
[BlackElo "2173"]
[WhiteTeam "GER"]
[BlackTeam "BLR"]
[WhiteClock "0:02:09"]
[BlackClock "0:01:01"]

1. e4 {[%clk 0:03:00]}  c5 {[%clk 0:02:59]} 2. d4 {[%clk 0:03:01]}  cxd4 {[%clk 0:02:59]} 3. c3 {[%clk 0:03:02]}  dxc3 {[%clk 0:03:00]} 4. Nxc3 {[%clk 0:03:03]}  d6 {[%clk 0:02:59]} 5. Bc4 {[%clk 0:03:03]}  Nc6 {[%clk 0:02:58]} 6. Nf3 {[%clk 0:03:03]}  Nf6 {[%clk 0:02:58]} 7. e5 {[%clk 0:03:03]}  dxe5 {[%clk 0:02:52]} 8. Qxd8+ {[%clk 0:03:04]}  Nxd8 {[%clk 0:02:51]} 9. Nb5 {[%clk 0:03:04]}  Rb8 {[%clk 0:02:23]} 10. Nxe5 {[%clk 0:03:04]}  Ne6 {[%clk 0:02:20]} 11. Bxe6 {[%clk 0:03:01]}  Bxe6 {[%clk 0:02:21]} 12. Nc7+ {[%clk 0:03:00]}  Kd8 {[%clk 0:02:03]} 13. Nxe6+ {[%clk 0:03:01]}  fxe6 {[%clk 0:02:04]} 14. Nf7+ {[%clk 0:03:01]}  Ke8 {[%clk 0:02:05]} 15. Nxh8 {[%clk 0:03:01]}  g6 {[%clk 0:02:03]} 16. O-O {[%clk 0:02:54]}  Bg7 {[%clk 0:02:03]} 17. Bf4 {[%clk 0:02:55]}  Rd8 {[%clk 0:02:02]} 18. Nxg6 {[%clk 0:02:53]}  hxg6 {[%clk 0:02:02]} 19. Rfd1 {[%clk 0:02:53]}  Nd5 {[%clk 0:02:01]} 20. Bg5 {[%clk 0:02:48]}  Rc8 {[%clk 0:01:48]} 21. Rac1 {[%clk 0:02:48]}  Rxc1 {[%clk 0:01:48]} 22. Rxc1 {[%clk 0:02:49]}  Bxb2 {[%clk 0:01:47]} 23. Rb1 {[%clk 0:02:49]}  Bd4 {[%clk 0:01:38]} 24. Rxb7 {[%clk 0:02:49]}  Kd8 {[%clk 0:01:34]} 25. Kf1 {[%clk 0:02:44]}  Kc8 {[%clk 0:01:29]} 26. Rb3 {[%clk 0:02:45]}  a5 {[%clk 0:01:27]} 27. Ke2 {[%clk 0:02:39]}  a4 {[%clk 0:01:24]} 28. Ra3 {[%clk 0:02:36]}  Bc5 {[%clk 0:01:21]} 29. Rh3 {[%clk 0:02:28]}  a3 {[%clk 0:01:20]} 30. Bc1 {[%clk 0:02:26]}  Bd6 {[%clk 0:01:16]} 31. Rf3 {[%clk 0:02:20]}  e5 {[%clk 0:01:10]} 32. Bxa3 {[%clk 0:02:17]}  e4 {[%clk 0:01:08]} 33. Rf8+ {[%clk 0:02:17]}  Kd7 {[%clk 0:01:09]} 34. Bxd6 {[%clk 0:02:18]}  exd6 {[%clk 0:01:09]} 35. Kd2 {[%clk 0:02:10]}  Ke7 {[%clk 0:01:06]} 36. Rb8 {[%clk 0:02:11]}  Nf6 {[%clk 0:01:03]} 37. a4 {[%clk 0:02:10]}  Ng4 {[%clk 0:01:03]} 38. a5 {[%clk 0:02:10]}  d5 {[%clk 0:01:03]} 39. a6 {[%clk 0:02:10]}  Nxf2 {[%clk 0:01:02]} 40. a7 {[%clk 0:02:10]}  d4 {[%clk 0:01:02]} 41. a8=Q {[%clk 0:02:10]}  e3+ {[%clk 0:01:03]} 42. Ke2 {[%clk 0:02:09]}  Ne4 {[%clk 0:01:01]} 1-0

[Event "November 21 Early 2023"]
[Site "https://www.chess.com"]
[Date "2023.11.21"]
[Round "4"]
[White "Pak, Yevgeniy"]
[Black "Kukreja Sankalp"]
[Result "0-1"]
[Board "147"]
[TimeControl "180+1"]
[WhiteFideId "14201712"]
[BlackFideId "45027676"]
[WhiteElo "2320"]
[BlackElo "2126"]
[WhiteTeam "KAZ"]
[BlackTeam "IND"]
[WhiteClock "0:00:48"]
[BlackClock "0:01:49"]

1. e4 {[%clk 0:03:00]}  c5 {[%clk 0:02:55]} 2. Nf3 {[%clk 0:02:58]}  g6 {[%clk 0:02:55]} 3. d4 {[%clk 0:02:56]}  cxd4 {[%clk 0:02:56]} 4. Qxd4 {[%clk 0:02:54]}  Nf6 {[%clk 0:02:56]} 5. Nc3 {[%clk 0:02:53]}  Nc6 {[%clk 0:02:56]} 6. Qd3 {[%clk 0:02:53]}  Bg7 {[%clk 0:02:53]} 7. Be2 {[%clk 0:02:52]}  O-O {[%clk 0:02:52]} 8. O-O {[%clk 0:02:51]}  d6 {[%clk 0:02:52]} 9. Nd5 {[%clk 0:02:50]}  Bg4 {[%clk 0:02:50]} 10. c3 {[%clk 0:02:47]}  Rc8 {[%clk 0:02:46]} 11. h3 {[%clk 0:02:44]}  Bxf3 {[%clk 0:02:45]} 12. Qxf3 {[%clk 0:02:44]}  Ne5 {[%clk 0:02:40]} 13. Qg3 {[%clk 0:02:44]}  Nxe4 {[%clk 0:02:38]} 14. Qh4 {[%clk 0:02:40]}  Nf6 {[%clk 0:02:38]} 15. f4 {[%clk 0:02:40]}  Nxd5 {[%clk 0:02:22]} 16. fxe5 {[%clk 0:02:39]}  Bxe5 {[%clk 0:02:23]} 17. Bc4 {[%clk 0:02:29]}  e6 {[%clk 0:02:16]} 18. Qxd8 {[%clk 0:02:27]}  Rfxd8 {[%clk 0:02:17]} 19. Bxd5 {[%clk 0:02:26]}  exd5 {[%clk 0:02:18]} 20. Bg5 {[%clk 0:02:25]}  Rd7 {[%clk 0:02:17]} 21. Rad1 {[%clk 0:02:24]}  Rc5 {[%clk 0:02:16]} 22. Rf2 {[%clk 0:02:08]}  d4 {[%clk 0:02:11]} 23. cxd4 {[%clk 0:02:07]}  Bxd4 {[%clk 0:02:11]} 24. Rxd4 {[%clk 0:02:06]}  Rxg5 {[%clk 0:02:11]} 25. Rfd2 {[%clk 0:02:04]}  Rb5 {[%clk 0:02:11]} 26. b3 {[%clk 0:02:01]}  d5 {[%clk 0:02:10]} 27. Kf2 {[%clk 0:01:54]}  f5 {[%clk 0:02:10]} 28. g4 {[%clk 0:01:52]}  Kf7 {[%clk 0:02:02]} 29. Kf3 {[%clk 0:01:51]}  Kf6 {[%clk 0:02:02]} 30. Kf4 {[%clk 0:01:50]}  g5+ {[%clk 0:02:02]} 31. Kf3 {[%clk 0:01:49]}  f4 {[%clk 0:02:03]} 32. h4 {[%clk 0:01:49]}  h6 {[%clk 0:02:02]} 33. hxg5+ {[%clk 0:01:47]}  hxg5 {[%clk 0:02:03]} 34. Rh2 {[%clk 0:01:47]}  Kg6 {[%clk 0:02:04]} 35. Rh8 {[%clk 0:01:22]}  Rc5 {[%clk 0:02:03]} 36. Rg8+ {[%clk 0:01:19]}  Kf6 {[%clk 0:02:01]} 37. Rf8+ {[%clk 0:01:18]}  Kg7 {[%clk 0:02:01]} 38. Rf5 {[%clk 0:01:18]}  Kg6 {[%clk 0:02:02]} 39. a4 {[%clk 0:01:10]}  Rc3+ {[%clk 0:02:02]} 40. Ke2 {[%clk 0:01:10]}  Rg3 {[%clk 0:01:57]} 41. Rdxd5 {[%clk 0:01:06]}  Rxd5 {[%clk 0:01:54]} 42. Rxd5 {[%clk 0:01:06]}  Rxg4 {[%clk 0:01:55]} 43. Rd7 {[%clk 0:01:06]}  Rg2+ {[%clk 0:01:55]} 44. Kf1 {[%clk 0:01:05]}  f3 {[%clk 0:01:49]} 45. Rxb7 {[%clk 0:01:01]}  g4 {[%clk 0:01:49]} 46. Rxa7 {[%clk 0:00:54]}  Rb2 {[%clk 0:01:49]} 47. Rb7 {[%clk 0:00:49]}  g3 {[%clk 0:01:49]} 48. a5 {[%clk 0:00:48]}  Rb1# {[%clk 0:01:49]} 0-1

[Event "November 21 Early 2023"]
[Site "https://www.chess.com"]
[Date "2023.11.21"]
[Round "4"]
[White "Bilan, Danila"]
[Black "Gallegos Diaz, Carlos Alberto"]
[Result "1-0"]
[Board "152"]
[TimeControl "180+1"]
[WhiteFideId "24161918"]
[BlackFideId "3900886"]
[WhiteElo "2146"]
[BlackElo "2362"]
[WhiteTeam "RUS"]
[BlackTeam "VEN"]
[WhiteClock "0:00:20"]
[BlackClock "0:00:04"]

1. d4 {[%clk 0:02:50]}  d6 {[%clk 0:02:59]} 2. Nf3 {[%clk 0:02:50]}  Nf6 {[%clk 0:02:59]} 3. g3 {[%clk 0:02:50]}  Nbd7 {[%clk 0:02:58]} 4. Bg2 {[%clk 0:02:50]}  e5 {[%clk 0:02:59]} 5. c4 {[%clk 0:02:50]}  Be7 {[%clk 0:02:58]} 6. O-O {[%clk 0:02:50]}  O-O {[%clk 0:02:58]} 7. Nc3 {[%clk 0:02:51]}  c6 {[%clk 0:02:52]} 8. Qc2 {[%clk 0:02:50]}  Re8 {[%clk 0:02:48]} 9. h3 {[%clk 0:02:47]}  h6 {[%clk 0:02:43]} 10. Rd1 {[%clk 0:02:37]}  Qc7 {[%clk 0:02:43]} 11. e4 {[%clk 0:02:31]}  exd4 {[%clk 0:02:41]} 12. Nxd4 {[%clk 0:02:29]}  Bf8 {[%clk 0:02:41]} 13. Bf4 {[%clk 0:02:18]}  Ne5 {[%clk 0:02:41]} 14. b3 {[%clk 0:02:16]}  a6 {[%clk 0:02:37]} 15. Rd2 {[%clk 0:02:09]}  b5 {[%clk 0:02:23]} 16. cxb5 {[%clk 0:02:00]}  cxb5 {[%clk 0:02:21]} 17. Rc1 {[%clk 0:01:50]}  Bb7 {[%clk 0:01:51]} 18. Nd5 {[%clk 0:01:39]}  Nxd5 {[%clk 0:01:48]} 19. Qxc7 {[%clk 0:01:38]}  Nxc7 {[%clk 0:01:48]} 20. Rxc7 {[%clk 0:01:39]}  Bc8 {[%clk 0:00:52]} 21. Be3 {[%clk 0:01:32]}  Rb8 {[%clk 0:00:16]} 22. f4 {[%clk 0:01:23]}  Nd7 {[%clk 0:00:17]} 23. e5 {[%clk 0:01:13]}  dxe5 {[%clk 0:00:15]} 24. Nc6 {[%clk 0:01:13]}  exf4 {[%clk 0:00:15]} 25. Bxf4 {[%clk 0:01:03]}  Rb6 {[%clk 0:00:12]} 26. Rdxd7 {[%clk 0:00:46]}  Bxd7 {[%clk 0:00:13]} 27. Rxd7 {[%clk 0:00:47]}  Re1+ {[%clk 0:00:12]} 28. Kh2 {[%clk 0:00:44]}  Re2 {[%clk 0:00:12]} 29. Rc7 {[%clk 0:00:30]}  g5 {[%clk 0:00:10]} 30. Bc1 {[%clk 0:00:21]}  Rc2 {[%clk 0:00:10]} 31. Be3 {[%clk 0:00:20]}  Be7 {[%clk 0:00:04]} 32. Bxb6 {[%clk 0:00:20]} 1-0

[Event "November 21 Early 2023"]
[Site "https://www.chess.com"]
[Date "2023.11.21"]
[Round "4"]
[White "Novik, Maxim"]
[Black "Kotepalli, Sai Nirupama"]
[Result "0-1"]
[Board "154"]
[TimeControl "180+1"]
[WhiteFideId "4102924"]
[BlackFideId "5039444"]
[WhiteElo "2306"]
[BlackElo "2383"]
[WhiteTeam "LTU"]
[BlackTeam "IND"]
[WhiteClock "0:00:09"]
[BlackClock "0:00:07"]

1. e4 {[%clk 0:03:00]}  c5 {[%clk 0:02:06]} 2. Nf3 {[%clk 0:02:59]}  e6 {[%clk 0:02:06]} 3. d3 {[%clk 0:02:58]}  d5 {[%clk 0:02:05]} 4. Nbd2 {[%clk 0:02:59]}  Nc6 {[%clk 0:02:04]} 5. g3 {[%clk 0:02:59]}  Nf6 {[%clk 0:02:02]} 6. Bg2 {[%clk 0:02:59]}  dxe4 {[%clk 0:01:57]} 7. dxe4 {[%clk 0:02:59]}  e5 {[%clk 0:01:56]} 8. O-O {[%clk 0:02:59]}  Be6 {[%clk 0:01:51]} 9. Ng5 {[%clk 0:02:58]}  Bg4 {[%clk 0:01:46]} 10. Bf3 {[%clk 0:02:55]}  Bxf3 {[%clk 0:01:36]} 11. Ngxf3 {[%clk 0:02:54]}  Be7 {[%clk 0:01:25]} 12. c3 {[%clk 0:02:54]}  Qc7 {[%clk 0:01:22]} 13. Qe2 {[%clk 0:02:53]}  O-O-O {[%clk 0:01:20]} 14. a4 {[%clk 0:02:52]}  h6 {[%clk 0:01:11]} 15. Re1 {[%clk 0:02:51]}  g5 {[%clk 0:01:08]} 16. Nc4 {[%clk 0:02:51]}  g4 {[%clk 0:00:58]} 17. Nfd2 {[%clk 0:02:51]}  h5 {[%clk 0:00:55]} 18. Ne3 {[%clk 0:02:51]}  Rdg8 {[%clk 0:00:44]} 19. Nf5 {[%clk 0:02:47]}  Bd8 {[%clk 0:00:32]} 20. Nc4 {[%clk 0:02:46]}  Ne8 {[%clk 0:00:29]} 21. Be3 {[%clk 0:02:46]}  Ne7 {[%clk 0:00:26]} 22. Nxe7+ {[%clk 0:02:40]}  Bxe7 {[%clk 0:00:27]} 23. Red1 {[%clk 0:02:39]}  h4 {[%clk 0:00:25]} 24. a5 {[%clk 0:02:37]}  hxg3 {[%clk 0:00:23]} 25. hxg3 {[%clk 0:02:38]}  Qc6 {[%clk 0:00:22]} 26. Rd5 {[%clk 0:02:29]}  Qg6 {[%clk 0:00:18]} 27. Qf1 {[%clk 0:00:50]}  Qh5 {[%clk 0:00:15]} 28. Qg2 {[%clk 0:00:50]}  f6 {[%clk 0:00:13]} 29. Bxc5 {[%clk 0:00:49]}  Rg7 {[%clk 0:00:13]} 30. Bxe7 {[%clk 0:00:48]}  Rxe7 {[%clk 0:00:11]} 31. Nb6+ {[%clk 0:00:40]}  axb6 {[%clk 0:00:11]} 32. axb6 {[%clk 0:00:41]}  Kb8 {[%clk 0:00:09]} 33. Rda5 {[%clk 0:00:41]}  Kc8 {[%clk 0:00:09]} 34. Kf1 {[%clk 0:00:29]}  Qh1+ {[%clk 0:00:09]} 35. Qxh1 {[%clk 0:00:28]}  Rxh1+ {[%clk 0:00:10]} 36. Ke2 {[%clk 0:00:29]}  Rxa1 {[%clk 0:00:10]} 37. Rxa1 {[%clk 0:00:29]}  Re6 {[%clk 0:00:11]} 38. Kd3 {[%clk 0:00:24]}  Rxb6 {[%clk 0:00:11]} 39. b4 {[%clk 0:00:25]}  Rd6+ {[%clk 0:00:11]} 40. Kc2 {[%clk 0:00:25]}  Nc7 {[%clk 0:00:10]} 41. Rh1 {[%clk 0:00:25]}  Rc6 {[%clk 0:00:10]} 42. Kb3 {[%clk 0:00:24]}  Nb5 {[%clk 0:00:11]} 43. c4 {[%clk 0:00:24]}  Nd6 {[%clk 0:00:11]} 44. c5 {[%clk 0:00:24]}  Nxe4 {[%clk 0:00:11]} 45. Kc4 {[%clk 0:00:24]}  Nxf2 {[%clk 0:00:11]} 46. Rh8+ {[%clk 0:00:21]}  Kd7 {[%clk 0:00:11]} 47. Rh7+ {[%clk 0:00:21]}  Kc8 {[%clk 0:00:11]} 48. b5 {[%clk 0:00:20]}  Re6 {[%clk 0:00:10]} 49. Kd5 {[%clk 0:00:20]}  Re8 {[%clk 0:00:09]} 50. c6 {[%clk 0:00:20]}  bxc6+ {[%clk 0:00:07]} 51. Kxc6 {[%clk 0:00:21]}  Re6+ {[%clk 0:00:08]} 52. Kd5 {[%clk 0:00:20]}  Rb6 {[%clk 0:00:08]} 53. Kc5 {[%clk 0:00:20]}  Re6 {[%clk 0:00:07]} 54. Kd5 {[%clk 0:00:20]}  Re8 {[%clk 0:00:06]} 55. Kc6 {[%clk 0:00:20]}  Nd3 {[%clk 0:00:05]} 56. b6 {[%clk 0:00:19]}  Nb4+ {[%clk 0:00:05]} 57. Kb5 {[%clk 0:00:20]}  Nd5 {[%clk 0:00:05]} 58. Kc6 {[%clk 0:00:17]}  Ne7+ {[%clk 0:00:03]} 59. Kc5 {[%clk 0:00:17]}  Kb7 {[%clk 0:00:02]} 60. Rg7 {[%clk 0:00:16]}  e4 {[%clk 0:00:02]} 61. Kd4 {[%clk 0:00:15]}  f5 {[%clk 0:00:03]} 62. Kc5 {[%clk 0:00:14]}  e3 {[%clk 0:00:03]} 63. Kd4 {[%clk 0:00:14]}  e2 {[%clk 0:00:02]} 64. Ke5 {[%clk 0:00:10]}  e1=Q+ {[%clk 0:00:03]} 65. Kf6 {[%clk 0:00:11]}  Qc3+ {[%clk 0:00:03]} 66. Kf7 {[%clk 0:00:11]}  Qxg7+ {[%clk 0:00:03]} 67. Kxg7 {[%clk 0:00:11]}  Nd5 {[%clk 0:00:04]} 68. Kg6 {[%clk 0:00:12]}  Re3 {[%clk 0:00:05]} 69. Kxf5 {[%clk 0:00:12]}  Rxg3 {[%clk 0:00:06]} 70. Ke4 {[%clk 0:00:09]}  Rg1 {[%clk 0:00:07]} 0-1

[Event "November 21 Early 2023"]
[Site "https://www.chess.com"]
[Date "2023.11.21"]
[Round "4"]
[White "secrethawk1"]
[Black "Erzhanov, Arman"]
[Result "0-1"]
[Board "155"]
[TimeControl "180+1"]
[BlackFideId "4138821"]
[WhiteElo "2383"]
[BlackElo "2171"]
[BlackTeam "KAZ"]
[WhiteClock "0:00:01"]
[BlackClock "0:01:20"]

1. d4 {[%clk 0:03:00]}  d6 {[%clk 0:02:59]} 2. Nf3 {[%clk 0:02:56]}  Bg4 {[%clk 0:02:59]} 3. e4 {[%clk 0:02:55]}  e6 {[%clk 0:02:58]} 4. c4 {[%clk 0:02:54]}  Nf6 {[%clk 0:02:58]} 5. Nc3 {[%clk 0:02:54]}  d5 {[%clk 0:02:59]} 6. cxd5 {[%clk 0:02:53]}  exd5 {[%clk 0:02:59]} 7. e5 {[%clk 0:02:54]}  Ne4 {[%clk 0:02:59]} 8. Be2 {[%clk 0:02:54]}  Bb4 {[%clk 0:02:57]} 9. Qc2 {[%clk 0:02:45]}  Bf5 {[%clk 0:02:56]} 10. Bd3 {[%clk 0:02:44]}  O-O {[%clk 0:02:53]} 11. O-O {[%clk 0:02:42]}  Bxc3 {[%clk 0:02:51]} 12. bxc3 {[%clk 0:02:39]}  Bg6 {[%clk 0:02:50]} 13. a4 {[%clk 0:02:32]}  c5 {[%clk 0:02:50]} 14. Ba3 {[%clk 0:02:23]}  c4 {[%clk 0:02:50]} 15. Bxe4 {[%clk 0:02:18]}  Bxe4 {[%clk 0:02:49]} 16. Qb2 {[%clk 0:02:18]}  Re8 {[%clk 0:02:49]} 17. Qxb7 {[%clk 0:02:14]}  Nd7 {[%clk 0:02:49]} 18. Ne1 {[%clk 0:02:04]}  Re6 {[%clk 0:02:48]} 19. Bd6 {[%clk 0:02:00]}  Rg6 {[%clk 0:02:30]} 20. f3 {[%clk 0:01:56]}  Bf5 {[%clk 0:02:23]} 21. Qxd5 {[%clk 0:01:43]}  Nb6 {[%clk 0:02:22]} 22. Qb5 {[%clk 0:01:37]}  Bd7 {[%clk 0:02:22]} 23. Qb4 {[%clk 0:01:31]}  a5 {[%clk 0:02:21]} 24. Qc5 {[%clk 0:01:28]}  Nxa4 {[%clk 0:02:20]} 25. Qxc4 {[%clk 0:01:27]}  Rc8 {[%clk 0:02:18]} 26. Qa6 {[%clk 0:01:15]}  Nxc3 {[%clk 0:02:05]} 27. Rxa5 {[%clk 0:01:01]}  Ne2+ {[%clk 0:02:01]} 28. Kh1 {[%clk 0:00:59]}  Nxd4 {[%clk 0:01:53]} 29. Nd3 {[%clk 0:00:53]}  Nf5 {[%clk 0:01:49]} 30. Nf4 {[%clk 0:00:49]}  Rh6 {[%clk 0:01:48]} 31. Qd3 {[%clk 0:00:47]}  Ng3+ {[%clk 0:01:47]} 32. Kg1 {[%clk 0:00:45]}  Bf5 {[%clk 0:01:46]} 33. Qa6 {[%clk 0:00:35]}  Nxf1 {[%clk 0:01:45]} 34. Kxf1 {[%clk 0:00:36]}  Rxh2 {[%clk 0:01:43]} 35. Nd5 {[%clk 0:00:35]}  Rh1+ {[%clk 0:01:43]} 36. Ke2 {[%clk 0:00:35]}  Rc2+ {[%clk 0:01:33]} 37. Ke3 {[%clk 0:00:30]}  Qg5+ {[%clk 0:01:29]} 38. Nf4 {[%clk 0:00:15]}  Re1+ {[%clk 0:01:22]} 39. Kd4 {[%clk 0:00:15]}  Qxf4+ {[%clk 0:01:22]} 40. Kd5 {[%clk 0:00:13]}  Rd1+ {[%clk 0:01:20]} 41. Qd3 {[%clk 0:00:01]}  Rxd3# {[%clk 0:01:20]} 0-1

[Event "November 21 Early 2023"]
[Site "https://www.chess.com"]
[Date "2023.11.21"]
[Round "4"]
[White "Hajiyev, Kanan"]
[Black "Matveeva, Olga"]
[Result "1-0"]
[Board "157"]
[TimeControl "180+1"]
[WhiteFideId "13404148"]
[BlackFideId "24107018"]
[WhiteElo "2102"]
[BlackElo "1883"]
[WhiteTeam "AZE"]
[BlackTeam "RUS"]
[WhiteClock "0:00:46"]
[BlackClock "0:00:04"]

1. d4 {[%clk 0:03:00]}  d5 {[%clk 0:02:59]} 2. Nf3 {[%clk 0:03:01]}  Nf6 {[%clk 0:02:59]} 3. c4 {[%clk 0:03:02]}  e6 {[%clk 0:02:58]} 4. cxd5 {[%clk 0:03:03]}  exd5 {[%clk 0:02:58]} 5. Nc3 {[%clk 0:03:04]}  c6 {[%clk 0:02:58]} 6. Qc2 {[%clk 0:03:04]}  Be7 {[%clk 0:02:56]} 7. Bf4 {[%clk 0:03:04]}  O-O {[%clk 0:02:55]} 8. e3 {[%clk 0:03:05]}  Re8 {[%clk 0:02:50]} 9. Bd3 {[%clk 0:03:05]}  Nbd7 {[%clk 0:02:46]} 10. O-O {[%clk 0:03:05]}  Nf8 {[%clk 0:02:43]} 11. Rab1 {[%clk 0:03:04]}  a5 {[%clk 0:02:41]} 12. h3 {[%clk 0:03:04]}  Bd6 {[%clk 0:02:32]} 13. Bg5 {[%clk 0:03:04]}  h6 {[%clk 0:02:27]} 14. Bh4 {[%clk 0:03:03]}  g5 {[%clk 0:01:14]} 15. Nxg5 {[%clk 0:03:03]}  hxg5 {[%clk 0:01:12]} 16. Bxg5 {[%clk 0:03:04]}  Be7 {[%clk 0:01:09]} 17. f4 {[%clk 0:03:04]}  N8h7 {[%clk 0:01:05]} 18. Bh4 {[%clk 0:03:03]}  Kg7 {[%clk 0:01:03]} 19. Rf3 {[%clk 0:03:00]}  Rh8 {[%clk 0:00:58]} 20. Rbf1 {[%clk 0:02:52]}  Nh5 {[%clk 0:00:52]} 21. Be1 {[%clk 0:02:44]}  Qd6 {[%clk 0:00:39]} 22. g4 {[%clk 0:02:39]}  N5f6 {[%clk 0:00:37]} 23. Ne2 {[%clk 0:02:18]}  Bd7 {[%clk 0:00:36]} 24. Bc3 {[%clk 0:02:17]}  Rag8 {[%clk 0:00:34]} 25. Ng3 {[%clk 0:02:17]}  Kf8 {[%clk 0:00:33]} 26. a3 {[%clk 0:01:36]}  b6 {[%clk 0:00:26]} 27. b4 {[%clk 0:01:34]}  axb4 {[%clk 0:00:25]} 28. Bxb4 {[%clk 0:01:34]}  c5 {[%clk 0:00:21]} 29. dxc5 {[%clk 0:01:34]}  bxc5 {[%clk 0:00:21]} 30. Bc3 {[%clk 0:01:30]}  d4 {[%clk 0:00:19]} 31. exd4 {[%clk 0:01:31]}  cxd4 {[%clk 0:00:20]} 32. Bb4 {[%clk 0:01:31]}  Qd5 {[%clk 0:00:16]} 33. Bc4 {[%clk 0:01:16]}  Qb7 {[%clk 0:00:13]} 34. Rb3 {[%clk 0:01:12]}  Bxb4 {[%clk 0:00:11]} 35. Rxb4 {[%clk 0:01:13]}  Qc7 {[%clk 0:00:11]} 36. Qb3 {[%clk 0:01:11]}  Bc6 {[%clk 0:00:09]} 37. Nf5 {[%clk 0:00:48]}  Nxg4 {[%clk 0:00:09]} 38. Rb8+ {[%clk 0:00:49]}  Be8 {[%clk 0:00:04]} 39. Qb4+ {[%clk 0:00:46]} 1-0